bitfinex/quotes_SOLUSD_20251204
["timestamp","ask_amount","ask_price","bid_price","bid_amount"]
[1764808706589,0.7,143.86,143.82,6.95313586]
[1764808707896,3.29662149,143.86,143.82,6.95313586]
[1764808708082,7.7,143.85,143.82,6.95313586]
[1764808708269,8.4,143.85,143.82,6.95313586]
[1764808708466,0.7,143.84,143.82,6.95313586]
[1764808708669,0.7,143.84,143.81,24.33685037]
[1764808709174,0.7,143.84,143.81,6.95361935]
[1764808709970,7.7,143.85,143.81,7.65361935]
[1764808710195,10.29662149,143.85,143.81,7.65361935]
[1764808710377,0.7,143.84,143.81,24.33766774]
[1764808711490,0.7,143.84,143.81,6.95361935]
[1764808713290,0.7,143.84,143.8,6.95410292]
[1764808713490,3.29662149,143.84,143.8,6.95410292]
[1764808713891,0.7,143.83,143.8,6.95410292]
[1764808714473,3.29662149,143.83,143.79,6.95458654]
[1764808714883,0.7,143.83,143.79,6.95458654]
[1764808715094,0.7,143.83,143.79,7.65458654]
[1764808715278,0.7,143.83,143.79,10.25120803]
[1764808715787,0.7,143.83,143.79,7.65458654]
[1764808716031,0.7,143.87,143.82,2.59662149]
[1764808716198,7.7,143.85,143.82,2.59662149]
[1764808716403,7.7,143.85,143.83,6.95265243]
[1764808724483,7.7,143.85,143.84,7.67216907]
[1764808724689,27.28548549,143.88,143.84,7.67216907]
[1764808724690,7.68,143.86,143.84,7.67216907]
[1764808725195,7.68,143.86,143.84,25.05259176]
[1764808725706,7.68,143.86,143.84,27.64921325]
[1764808726198,7.68,143.86,143.84,25.05259176]
[1764808726397,7.68,143.86,143.84,24.33259176]
[1764808726702,7.68,143.86,143.84,25.05259176]
[1764808727196,21.55029114,143.9,143.85,3.31662149]
[1764808727396,29.23029114,143.9,143.86,2.59662149]
[1764808727577,8.36,143.9,143.86,3.31662149]
[1764808727777,7.68,143.9,143.87,0.72]
[1764808728190,7.68,143.9,143.87,3.31662149]
[1764808728384,7.68,143.9,143.87,0.72]
[1764808728895,7.68,143.9,143.87,3.31662149]
[1764808729204,7.68,143.9,143.88,6.9502363]
[1764808729403,7.68,143.9,143.89,2.59662149]
[1764808729902,7.68,143.9,143.88,10.26685779]
[1764808730095,7.68,143.9,143.88,7.6702363]
[1764808730299,7.68,143.9,143.88,10.26685779]
[1764808731782,24.668864,143.94,143.89,3.31662149]
[1764808731983,8.36,143.94,143.91,2.59662149]
[1764808732185,8.36,143.94,143.92,2.59662149]
[1764808732383,8.36,143.94,143.91,2.59662149]
[1764808734006,8.36,143.94,143.92,6.94830461]
[1764808734198,0.68,143.98,143.93,2.59662149]
[1764808734388,8.36,143.98,143.95,2.59662149]
[1764808734589,7.68,143.98,143.95,2.59662149]
[1764808734794,7.68,143.98,143.96,2.59662149]
[1764808734795,8.36,143.98,143.96,2.59662149]
[1764808735211,0.68,143.97,143.95,2.59662149]
[1764808735916,8.36,143.98,143.95,2.59662149]
[1764808736092,8.36,143.98,143.95,9.54328094]
[1764808736498,8.36,143.98,143.96,2.59662149]
[1764808737717,8.36,143.98,143.96,9.54289252]
[1764808737893,7.68,143.98,143.97,2.59662149]
[1764808738094,7.68,143.98,143.97,3.31662149]
[1764808739213,0.68,144.02,143.97,3.31662149]
[1764808739519,7.68,144.01,143.98,0.72]
[1764808739700,8.36,144.04,144.0,2.59662149]
[1764808739898,8.36,144.04,144.01,2.59662149]
[1764808740213,7.68,144.04,144.03,2.59662149]
[1764808741723,7.68,144.04,144.03,9.53961947]
[1764808742521,7.68,144.04,144.03,6.94299798]
[1764808742704,0.88,144.05,144.03,10.99289842]
[1764808743031,7.88,144.05,144.04,4.04990044]
[1764808743320,0.2,144.05,144.04,11.7124164]
[1764808743495,0.2,144.05,144.04,10.9924164]
[1764808744715,0.2,144.05,144.04,11.7124164]
[1764808746608,0.2,144.05,144.04,7.66251596]
[1764808746815,0.2,144.05,144.04,11.7124164]
[1764808748539,0.2,144.05,144.04,6.94251596]
[1764808748832,0.2,144.05,144.04,10.9924164]
[1764808749849,0.2,144.05,144.02,25.02117252]
[1764808750049,1e-08,144.05,144.04,4.04990044]
[1764808750432,1e-08,144.05,144.04,4.76990044]
[1764808751436,0.68000001,144.05,144.03,6.94251722]
[1764808751748,1e-08,144.05,144.04,11.7124164]
[1764808752248,1e-08,144.05,144.04,10.9924164]
[1764808754551,1e-08,144.05,144.04,11.6524164]
[1764808754763,1e-08,144.06,144.05,0.66]
[1764808755069,1e-08,144.06,144.05,4.70990044]
[1764808756163,1e-08,144.06,144.04,6.94251596]
[1764808756336,0.71000001,144.06,144.04,10.9924164]
[1764808757157,0.71000001,144.06,144.05,4.04990044]
[1764808757457,1e-08,144.06,144.05,4.04990044]
[1764808758531,1e-08,144.06,144.05,6.94203401]
[1764808758754,0.71000001,144.06,144.05,6.94203401]
[1764808760654,1e-08,144.06,144.05,6.94203401]
[1764808761052,0.71000001,144.06,144.05,6.94203401]
[1764808763142,0.71000001,144.06,144.03,6.94251823]
[1764808763378,0.71000001,144.06,144.02,6.94330706]
[1764808763537,4.04990044,144.05,144.03,6.94298001]
[1764808763736,0.71000001,144.06,144.03,6.94298001]
[1764808763968,4.75990045,144.06,144.03,6.94298001]
[1764808764154,0.71,144.05,144.01,24.30362945]
[1764808764349,0.71,144.05,144.01,28.35352989]
[1764808766264,4.75990044,144.05,144.01,24.30362945]
[1764808766663,4.04990044,144.03,144.0,6.94426459]
[1764808767052,0.71,144.02,144.01,6.94396222]
[1764808768769,0.71,144.02,144.0,6.94444444]
[1764808769644,0.71,144.02,143.99,6.94475736]
[1764808770459,4.75990044,144.02,143.99,6.94475736]
[1764808770653,0.71,144.02,143.98,6.94540908]
[1764808770854,0.71,144.01,143.98,6.94540908]
[1764808774357,4.75990044,144.01,143.97,6.94580439]
[1764808774572,4.04990044,143.98,143.91,35.40375433]
[1764808774750,4.04990044,143.98,143.93,17.36902658]
[1764808774751,4.04990044,143.96,143.93,17.36902658]
[1764808775065,4.75990044,143.97,143.93,17.36902658]
[1764808775293,4.75990044,143.97,143.93,24.31684843]
[1764808775574,4.75990044,143.96,143.93,6.94782185]
[1764808775791,4.75990044,143.96,143.91,21.42149391]
[1764808775792,0.71,143.96,143.92,6.9481569]
[1764808775950,0.71,143.95,143.92,6.9481569]
[1764808778170,0.71,143.95,143.91,6.94878743]
[1764808778349,0.71,143.95,143.91,10.99868787]
[1764808778550,0.71,143.95,143.91,28.37065646]
[1764808780484,0.72,143.97,143.94,4.04990044]
[1764808780667,8.4,143.98,143.95,4.04990044]
[1764808781184,8.4,143.98,143.92,8.80994492]
[1764808781367,8.4,143.98,143.95,4.04990044]
[1764808781878,8.4,143.98,143.96,6.94637399]
[1764808785174,7.68,143.98,143.96,6.94637399]
[1764808785374,8.37,143.98,143.96,6.94637399]
[1764808789590,8.37,143.98,143.95,28.36341724]
[1764808790379,0.69,143.97,143.95,28.36341724]
[1764808790699,7.68,143.98,143.95,28.36341724]
[1764808790886,0.69,143.97,143.95,6.94685654]
[1764808791791,0.69,143.97,143.94,6.94714595]
[1764808794493,4.73990044,143.97,143.94,6.94714595]
[1764808794798,0.69,143.97,143.94,6.94714595]
[1764808795098,0.69,143.96,143.94,6.94714595]
[1764808799890,0.69,143.96,143.93,17.36913412]
[1764808800109,7.68,143.95,143.92,6.94830461]
[1764808800401,7.68,143.95,143.91,6.94859875]
[1764808800402,4.04990044,143.94,143.91,6.94859875]
[1764808800582,4.73990044,143.94,143.91,6.94859875]
[1764808800790,0.69,143.93,143.91,6.94859875]
[1764808801391,7.68,143.95,143.91,6.94859875]
[1764808801593,0.69,143.94,143.91,10.99849919]
[1764808801906,0.69,143.94,143.91,6.94859875]
[1764808803102,0.69,143.94,143.91,10.99849919]
[1764808803512,0.69,143.94,143.91,6.94859875]
[1764808803709,0.69,143.94,143.91,10.99849919]
[1764808804223,0.69,143.94,143.91,29.03046778]
[1764808804522,7.68,143.95,143.92,3.25573331]
[1764808806207,7.68,143.95,143.93,6.94782185]
[1764808807015,0.69,143.94,143.93,6.94782185]
[1764808807322,0.69,143.94,143.92,6.9481606]
[1764808807895,7.68,143.95,143.92,9.54389391]
[1764808808126,7.68,143.96,143.94,2.59573331]
[1764808808419,7.68,143.96,143.95,6.94685654]
[1764808808420,8.37,143.96,143.95,6.94685654]
[1764808809231,8.37,143.96,143.95,7.60685654]
[1764808809232,7.68,143.96,143.95,7.60685654]
[1764808809588,33.66924853,144.01,143.95,7.60685654]
[1764808809589,0.69,143.99,143.95,24.9739979]
[1764808809818,0.69,143.98,143.95,24.3139979]
[1764808809988,8.37,144.0,143.95,24.9739979]
[1764808810192,0.69,143.99,143.95,24.9739979]
[1764808810506,0.69,143.99,143.95,26.90973121]
[1764808812416,0.69,143.99,143.96,2.59573331]
[1764808813200,8.38,144.0,143.96,3.25573331]
[1764808813634,0.7,143.99,143.96,3.25573331]
[1764808813822,0.7,143.99,143.96,2.59573331]
[1764808814335,0.7,143.99,143.97,6.9458915]
[1764808814500,7.68,144.0,143.97,10.20162481]
[1764808814698,7.68,144.0,143.98,2.59573331]
[1764808814930,7.68,144.0,143.99,2.59573331]
[1764808815725,0.7,144.04,143.99,3.25573331]
[1764808815910,0.7,144.03,144.01,2.59573331]
[1764808816294,5.66954991,144.06,144.02,9.53921338]
[1764808816507,5.66954991,144.06,144.04,2.59573331]
[1764808816508,1e-08,144.06,144.04,2.59573331]
[1764808816701,7.68000001,144.06,144.05,2.59573331]
[1764808817832,7.68000001,144.06,144.04,2.59573331]
[1764808818121,0.7,144.05,144.02,26.89791356]
[1764808818320,8.38000001,144.06,144.02,27.55791356]
[1764808818505,8.38000001,144.06,144.03,2.59573331]
[1764808819508,0.7,144.05,144.03,2.59573331]
[1764808819718,0.7,144.05,144.02,9.53921338]
[1764808820510,0.7,144.05,144.01,9.53959149]
[1764808820713,3.29573331,144.05,144.01,6.94385818]
[1764808821151,0.7,144.04,144.02,6.94346072]
[1764808821325,7.66,144.03,144.02,9.53919403]
[1764808821633,7.66,144.03,144.01,6.94380173]
[1764808821822,8.36,144.03,144.01,6.94380173]
[1764808822605,8.36,144.03,144.01,9.53953504]
[1764808823827,8.36,144.03,144.01,6.94380173]
[1764808827432,8.36,144.03,144.01,2.59573331]
[1764808827944,24.66886401,144.06,144.02,3.25573331]
[1764808828238,8.36000001,144.06,144.02,3.25573331]
[1764808828418,0.7,144.05,144.02,3.25573331]
[1764808829419,0.7,144.05,144.03,6.94299798]
[1764808830114,0.7,144.05,144.03,9.53873129]
[1764808830927,7.66000001,144.06,144.03,26.89622625]
[1764808831151,1e-08,144.06,144.05,2.59573331]
[1764808832043,1e-08,144.06,144.03,26.89622625]
[1764808832044,0.70000001,144.06,144.03,26.89622625]
[1764808832245,0.70000001,144.06,144.03,27.55622625]
[1764808832822,0.70000001,144.06,144.04,2.59573331]
[1764808833030,0.70000001,144.06,144.05,6.94203401]
[1764808833640,1e-08,144.06,144.05,6.94203401]
[1764808834340,1e-08,144.06,144.05,10.19776732]
[1764808835342,1e-08,144.06,144.05,26.50663132]
[1764808835546,1e-08,144.06,144.05,36.76236463]
[1764808836016,1e-08,144.06,144.05,45.57230955]
[1764808836838,1e-08,144.08,144.07,16.308864]
[1764808837034,1e-08,144.08,144.07,18.90459731]
[1764808837216,1e-08,144.08,144.07,26.50566762]
[1764808840124,1e-08,144.09,144.08,9.51994492]
[1764808840339,1e-08,144.09,144.08,19.77567823]
[1764808840826,1e-08,144.11,144.09,0.71]
[1764808841030,1e-08,144.11,144.1,2.59573331]
[1764808841741,1e-08,144.11,144.1,3.30573331]
[1764808841933,1e-08,144.11,144.1,10.24535857]
[1764808842646,1e-08,144.11,144.1,9.53535857]
[1764808843627,0.70000001,144.11,144.1,9.53535857]
[1764808843834,1e-08,144.11,144.1,10.22535857]
[1764808847542,1e-08,144.11,144.1,9.53535857]
[1764808847923,0.70000001,144.11,144.1,9.53535857]
[1764808848126,1e-08,144.11,144.1,9.53535857]
[1764808849854,1e-08,144.11,144.1,10.22535857]
[1764808850640,1e-08,144.11,144.1,17.88535857]
[1764808851923,1e-08,144.12,144.1,17.19535857]
[1764808852158,1e-08,144.12,144.11,3.28573331]
[1764808853639,1e-08,144.12,144.11,10.22487701]
[1764808854442,1e-08,144.12,144.11,6.9391437]
[1764808854642,1e-08,144.12,144.11,9.53487701]
[1764808855053,1e-08,144.12,144.11,10.22487701]
[1764808858151,1e-08,144.12,144.11,72.72487701]
[1764808858559,1e-08,144.12,144.11,83.10781025]
[1764808858853,1e-08,144.12,144.11,72.72487701]
[1764808859030,1e-08,144.12,144.11,70.1291437]
[1764808859238,1e-08,144.12,144.11,72.72487701]
[1764808859566,1e-08,144.12,144.11,83.10781025]
[1764808859740,1e-08,144.12,144.11,72.72487701]
[1764808862262,0.15549108,144.13,144.12,0.69]
[1764808862437,0.15549108,144.13,144.12,3.28573331]
[1764808863563,0.15549108,144.13,144.12,9.53439553]
[1764808864258,0.55549108,144.16,144.12,37.95398433]
[1764808864460,7.86,144.2,144.15,4.0416866]
[1764808864651,7.86,144.2,144.17,4.0416866]
[1764808865759,7.86,144.2,144.17,10.97754375]
[1764808866351,0.7,144.19,144.17,10.97754375]
[1764808867172,0.7,144.19,144.17,6.93585715]
[1764808867466,0.7,144.19,144.17,10.97754375]
[1764808868571,0.7,144.19,144.18,4.0416866]
[1764808869270,0.7,144.19,144.18,10.97746132]
[1764808869855,0.2,144.2,144.18,10.97746132]
[1764808870061,0.2,144.2,144.19,4.0416866]
[1764808871349,0.2,144.2,144.19,10.9769803]
[1764808875577,0.92,144.2,144.19,10.9769803]
[1764808875775,4.9616866,144.2,144.14,21.38529641]
[1764808875974,4.9616866,144.2,144.15,4.0416866]
[1764808875975,0.72,144.19,144.15,4.0416866]
[1764808876174,0.72,144.19,144.16,6.93673695]
[1764808877576,0.72,144.19,144.16,10.97842355]
[1764808877769,0.72,144.19,144.18,4.0416866]
[1764808878276,0.72,144.19,144.18,6.93577472]
[1764808880056,0.72,144.19,144.17,6.9362558]
[1764808880376,4.0416866,144.18,144.12,17.34642691]
[1764808880579,4.0416866,144.18,144.13,4.0416866]
[1764808880765,0.72,144.17,144.13,4.0416866]
[1764808880965,0.72,144.17,144.15,6.93692486]
[1764808881977,0.72,144.17,144.14,6.93769945]
[1764808883155,0.72,144.17,144.13,17.34481204]
[1764808883355,11.6980128,144.17,144.12,6.93866222]
[1764808883572,4.0416866,144.16,144.12,6.93866222]
[1764808883770,0.72,144.15,144.12,6.93866222]
[1764808884883,4.0416866,144.13,144.1,6.93937725]
[1764808885064,4.0416866,144.14,144.1,6.93937725]
[1764808885382,4.7616866,144.14,144.1,6.93937725]
[1764808885583,0.72,144.13,144.1,6.93937725]
[1764808888184,0.72,144.13,144.1,4.0416866]
[1764808889275,0.72,144.13,144.11,6.9391437]
[1764808889476,0.72,144.13,144.11,10.9808303]
[1764808889784,0.72,144.13,144.11,6.9391437]
[1764808889994,0.72,144.13,144.11,10.9808303]
[1764808890469,0.72,144.13,144.11,6.9391437]
[1764808890668,0.72,144.13,144.12,4.0416866]
[1764808891088,0.72,144.13,144.12,10.98034882]
[1764808891987,0.72,144.13,144.12,6.93866222]
[1764808893091,0.72,144.13,144.11,6.9391437]
[1764808893295,0.72,144.13,144.11,10.9808303]
[1764808894978,0.72,144.15,144.12,4.0416866]
[1764808895379,0.72,144.15,144.11,28.32868957]
[1764808896281,0.72,144.15,144.12,4.0416866]
[1764808896677,0.72,144.15,144.11,28.32868957]
[1764808897274,4.7616866,144.15,144.11,24.28700297]
[1764808897474,4.7616866,144.15,144.11,28.32868957]
[1764808897475,0.72,144.15,144.11,28.32868957]
[1764808897788,0.72,144.14,144.11,28.32868957]
[1764808903907,0.72,144.14,144.13,6.9381808]
[1764808905010,0.72,144.14,144.12,6.93866222]
[1764808905308,0.72,144.14,144.12,10.98034882]
[1764808905508,8.38,144.17,144.13,4.7116866]
[1764808905808,8.38,144.17,144.14,4.0416866]
[1764808905809,0.72,144.16,144.14,4.0416866]
[1764808905996,8.38,144.17,144.15,4.0416866]
[1764808906995,8.38,144.17,144.16,6.93673695]
[1764808907199,0.72,144.18,144.16,6.93673695]
[1764808908004,0.72,144.18,144.16,10.97842355]
[1764808908205,11.9016866,144.2,144.16,6.93673695]
[1764808908412,0.72,144.19,144.16,6.93673695]
[1764808909009,0.72,144.19,144.16,10.97842355]
[1764808909915,4.0416866,144.18,144.14,6.93769945]
[1764808910211,4.7616866,144.19,144.14,24.28194809]
[1764808910409,0.72,144.18,144.14,28.32363469]
[1764808911117,0.72,144.18,144.15,4.0416866]
[1764808913116,0.72,144.18,144.16,6.93673695]
[1764808914609,0.72,144.18,144.16,10.97842355]
[1764808915900,8.58,144.2,144.17,4.0416866]
[1764808916115,8.58,144.2,144.16,0.67]
[1764808916116,0.72,144.19,144.18,4.0416866]
[1764808916425,0.2,144.2,144.18,4.0416866]
[1764808916616,0.2,144.2,144.19,4.0416866]
[1764808917022,0.2,144.2,144.19,4.7116866]
[1764808917818,0.2,144.2,144.19,10.9769803]
[1764808918815,0.2,144.2,144.19,11.6469803]
[1764808921010,1e-08,144.2,144.19,11.6469803]
[1764808922520,0.2,144.23,144.2,0.67]
[1764808922721,0.2,144.26,144.22,4.0416866]
[1764808922901,0.2,144.26,144.25,4.0416866]
[1764808923525,0.1,144.28,144.25,4.7116866]
[1764808923829,0.1,144.28,144.27,4.0416866]
[1764808924023,0.1,144.28,144.27,4.7116866]
[1764808924227,0.1,144.28,144.27,15.68482117]
[1764808926429,0.1,144.28,144.27,20.50923297]
[1764808927836,1e-08,144.28,144.27,28.16923297]
[1764808928214,1e-08,144.28,144.27,36.97917789]
[1764808928432,0.1,144.32,144.29,16.308864]
[1764808928745,0.1,144.32,144.31,18.890421]
[1764808928948,0.1,144.32,144.31,19.560421]
[1764808929110,0.01727101,144.33,144.31,18.890421]
[1764808929319,0.01727101,144.33,144.32,3.251557]
[1764808930354,0.01727101,144.33,144.32,10.18060356]
[1764808931948,0.73727101,144.33,144.32,9.51060356]
[1764808932147,0.01727101,144.33,144.32,9.51060356]
[1764808933446,0.01727101,144.33,144.32,10.17060356]
[1764808935328,0.89,144.38,144.36,16.308864]
[1764808935329,0.2,144.38,144.36,16.308864]
[1764808935543,0.2,144.38,144.37,2.581557]
[1764808935751,0.2,144.38,144.37,3.241557]
[1764808937040,0.2,144.38,144.37,10.16820381]
[1764808938555,1e-08,144.38,144.37,10.16820381]
[1764808938760,0.1,144.43,144.38,9.46994492]
[1764808938938,0.1,144.43,144.42,2.581557]
[1764808939258,0.1,144.43,144.42,9.50580571]
[1764808940254,0.1,144.43,144.42,6.92424871]
[1764808940455,0.79,144.43,144.41,2.581557]
[1764808940756,0.79,144.43,144.41,9.50627541]
[1764808940958,0.1,144.43,144.42,9.50580571]
[1764808941359,0.79,144.43,144.42,9.50580571]
[1764808941856,0.1,144.43,144.42,9.50580571]
[1764808942447,0.1,144.43,144.42,10.16580571]
[1764808943632,0.1,144.43,144.42,7.58424871]
[1764808943848,0.1,144.43,144.42,10.16580571]
[1764808944138,0.1,144.43,144.42,17.80580571]
[1764808944463,1e-08,144.43,144.42,17.80580571]
[1764808944635,1e-08,144.45,144.44,25.11880892]
[1764808944839,0.1,144.48,144.44,27.70036592]
[1764808945034,0.1,144.48,144.47,2.581557]
[1764808945244,0.1,144.48,144.47,9.50340928]
[1764808945444,0.1,144.5,144.47,37.79426799]
[1764808945659,0.1,144.5,144.48,10.986228]
[1764808945848,0.1,144.5,144.49,2.581557]
[1764808947057,0.1,144.5,144.49,9.50245117]
[1764808948361,0.1,144.51,144.49,10.16245117]
[1764808948545,1e-08,144.51,144.5,3.241557]
[1764808948936,1e-08,144.51,144.5,17.80197222]
[1764808950462,0.69,144.57,144.5,94.82389532]
[1764808950635,0.69,144.57,144.56,2.581557]
[1764808951439,0.69,144.57,144.52,0.66]
[1764808951652,0.69,144.57,144.56,9.49909988]
[1764808952751,0.69,144.57,144.54,6.91836595]
[1764808952946,0.69,144.57,144.55,6.91796756]
[1764808953148,0.69,144.57,144.56,6.91754288]
[1764808953450,0.69,144.59,144.56,9.49909988]
[1764808953644,0.69,144.59,144.57,9.49831947]
[1764808954856,0.69,144.59,144.56,9.49903734]
[1764808955060,0.69,144.59,144.52,17.2974824]
[1764808955263,0.69,144.59,144.54,2.581557]
[1764808955462,7.60619714,144.59,144.54,9.49970485]
[1764808955770,10.18775414,144.59,144.54,9.49970485]
[1764808955973,0.69,144.58,144.54,9.49970485]
[1764808957048,0.69,144.58,144.55,2.581557]
[1764808957555,0.69,144.58,144.54,6.91814785]
[1764808957556,0.69,144.58,144.54,9.49970485]
[1764808958071,0.69,144.58,144.55,2.581557]
[1764808958246,0.69,144.58,144.54,9.49970485]
[1764808959741,0.69,144.58,144.55,6.91797944]
[1764808959946,16.308864,144.54,144.49,17.30107538]
[1764808960169,0.66,144.53,144.49,19.88263238]
[1764808960363,0.66,144.53,144.5,2.581557]
[1764808960758,0.66,144.53,144.5,6.92029674]
[1764808960954,3.241557,144.53,144.5,6.92029674]
[1764808961472,23.948864,144.56,144.47,6.92149867]
[1764808961473,2.581557,144.51,144.47,6.92149867]
[1764808961649,16.968864,144.52,144.47,6.92149867]
[1764808961650,2.581557,144.5,144.47,6.92149867]
[1764808961849,2.581557,144.5,144.46,6.92233144]
[1764808962172,0.66,144.49,144.46,6.92233144]
[1764808962375,0.66,144.49,144.46,31.12915618]
[1764808962967,0.66,144.49,144.46,6.92233144]
[1764808964073,0.66,144.49,144.46,13.82332758]
[1764808964252,8.32,144.51,144.47,6.90099614]
[1764808964455,0.68,144.5,144.47,6.90099614]
[1764808964769,0.68,144.5,144.48,6.90099614]
[1764808964970,7.64,144.51,144.49,6.90099614]
[1764808965151,0.68,144.53,144.5,6.90099614]
[1764808965348,7.58099614,144.53,144.47,6.90099614]
[1764808965871,0.68,144.52,144.47,6.90099614]
[1764808966071,0.68,144.52,144.48,6.90099614]
[1764808966370,7.64,144.55,144.5,6.90099614]
[1764808966677,0.68,144.53,144.5,6.90099614]
[1764808967953,0.68,144.53,144.51,6.91993633]
[1764808968475,0.68,144.53,144.51,13.82093247]
[1764808968976,0.68,144.53,144.51,6.91993633]
[1764808969776,0.68,144.53,144.49,6.90099614]
[1764808969968,0.68,144.53,144.5,6.92024418]
[1764808970675,0.68,144.53,144.5,13.82124032]
[1764808970875,0.68,144.53,144.5,6.92024418]
[1764808971477,15.71094106,144.52,144.4,8.24892481]
[1764808971660,15.71094106,144.52,144.46,6.92202576]
[1764808971661,6.90099614,144.5,144.46,6.92202576]
[1764808971866,6.90099614,144.5,144.45,6.90099614]
[1764808972064,0.68,144.49,144.45,6.90099614]
[1764808972475,0.68,144.49,144.45,17.3066609]
[1764808972666,0.68,144.49,144.45,24.20765704]
[1764808974471,14.50198906,144.49,144.44,13.82428608]
[1764808974681,0.68,144.48,144.44,13.82428608]
[1764808975783,0.68,144.48,144.44,6.92328994]
[1764808976085,0.68,144.48,144.44,13.82428608]
[1764808976782,14.50242042,144.48,144.43,6.92363529]
[1764808976958,6.90099614,144.46,144.42,6.92395491]
[1764808977481,0.68,144.45,144.42,6.92395491]
[1764808977669,0.68,144.45,144.43,6.92366643]
[1764808979093,0.68,144.45,144.42,13.82524485]
[1764808979581,30.84986014,144.47,144.43,6.90099614]
[1764808979582,23.948864,144.47,144.43,6.90099614]
[1764808979764,0.68,144.46,144.43,6.90099614]
[1764808980462,0.68,144.46,144.42,31.79586664]
[1764808980672,8.32,144.47,144.45,6.90099614]
[1764808980874,0.68,144.46,144.45,6.90099614]
[1764808981080,0.68,144.46,144.45,13.8238068]
[1764808981295,0.68,144.46,144.45,6.92281066]
[1764808981987,0.68,144.46,144.43,6.90099614]
[1764808982286,0.68,144.46,144.45,6.92281066]
[1764808982485,7.64,144.47,144.45,9.49937899]
[1764808982668,16.988864,144.49,144.45,26.80640564]
[1764808982865,0.68,144.48,144.46,2.57656833]
[1764808983069,8.32,144.5,144.47,9.49842061]
[1764808983970,8.32,144.5,144.48,2.57656833]
[1764808984886,8.32,144.5,144.47,26.80305132]
[1764808985291,0.68,144.49,144.47,26.80305132]
[1764808985981,7.64,144.5,144.48,2.57656833]
[1764808986388,7.64,144.5,144.48,4.02421117]
[1764808987193,7.64,144.5,144.49,6.92089417]
[1764808987373,0.68,144.53,144.49,10.94510534]
[1764808987695,0.68,144.52,144.49,10.94510534]
[1764808988477,0.68,144.52,144.49,6.92089417]
[1764808989078,0.68,144.52,144.48,6.92125219]
[1764808989079,4.70421117,144.52,144.48,6.92125219]
[1764808989272,4.02421117,144.51,144.46,10.94611331]
[1764808989494,4.70421117,144.51,144.46,10.94611331]
[1764808989769,0.68,144.5,144.46,10.94611331]
[1764808990385,0.68,144.5,144.44,4.02421117]
[1764808990386,3.52421117,144.49,144.44,4.02421117]
[1764808990585,4.20421117,144.49,144.44,10.94715731]
[1764808990791,0.68,144.48,144.44,6.92294614]
[1764808991373,7.60147612,144.48,144.44,6.92294614]
[1764808991574,11.62568729,144.48,144.44,6.92294614]
[1764808991766,11.62568729,144.48,144.43,4.02421117]
[1764808991767,8.32,144.47,144.43,4.02421117]
[1764808991979,12.34421117,144.47,144.43,6.92369024]
[1764808992174,0.68,144.46,144.43,10.94790141]
[1764808993090,0.68,144.46,144.43,6.92369024]
[1764808994175,0.68,144.46,144.43,28.25732466]
[1764808994475,4.02421117,144.44,144.39,6.925299]
[1764808994794,7.64,144.43,144.42,6.92424871]
[1764808995007,8.31,144.43,144.42,6.92424871]
[1764808996281,8.31,144.43,144.38,4.02421117]
[1764808996500,0.67,144.42,144.38,4.02421117]
[1764808996698,0.67,144.42,144.39,4.02421117]
[1764808997091,4.69421117,144.42,144.37,4.02421117]
[1764808997279,0.67,144.42,144.38,4.02421117]
[1764808997590,0.67,144.41,144.38,4.02421117]
[1764808997801,0.67,144.41,144.36,0.66]
[1764808997997,0.67,144.41,144.38,4.02421117]
[1764808998202,8.31,144.43,144.39,4.02421117]
[1764808998383,7.64,144.43,144.4,4.02421117]
[1764808998700,8.31,144.43,144.4,4.02421117]
[1764808999174,7.64,144.43,144.42,6.92424871]
[1764808999371,8.31,144.43,144.42,6.92424871]
[1764809000096,0.67,144.43,144.41,6.92461929]
[1764809000276,0.67,144.42,144.41,6.92461929]